[Event "Titled Tuesday Blitz June 22 2021"]
[White "Kislov, Oleg"]
[Black "Pacheco Lugo, Alejandro Jose"]
[WhiteFideId "13503774"]
[BlackFideId "3903745"]
[WhiteElo "2252"]
[BlackElo "2125"]
[Result "1/2-1/2"]
[Round "11"]
[TimeControl "180+1"]
[Date "2021.06.22"]
[WhiteClock "0:00:28"]
[BlackClock "0:01:03"]

1. e4 {[%clk 0:03:00]}  c5 {[%clk 0:02:58]} 2. Nf3 {[%clk 0:03:00]}  d6 {[%clk 0:02:59]} 3. c3 {[%clk 0:02:59]}  Nf6 {[%clk 0:02:58]} 4. Be2 {[%clk 0:02:58]}  Bg4 {[%clk 0:02:54]} 5. O-O {[%clk 0:02:56]}  Nc6 {[%clk 0:02:54]} 6. h3 {[%clk 0:02:55]}  Bh5 {[%clk 0:02:54]} 7. d4 {[%clk 0:02:52]}  cxd4 {[%clk 0:02:52]} 8. cxd4 {[%clk 0:02:51]}  e6 {[%clk 0:02:53]} 9. d5 {[%clk 0:02:50]}  exd5 {[%clk 0:02:45]} 10. exd5 {[%clk 0:02:49]}  Bxf3 {[%clk 0:02:42]} 11. Bxf3 {[%clk 0:02:20]}  Ne5 {[%clk 0:02:42]} 12. Be2 {[%clk 0:02:18]}  Be7 {[%clk 0:02:42]} 13. Bb5+ {[%clk 0:02:18]}  Ned7 {[%clk 0:02:42]} 14. Nc3 {[%clk 0:02:14]}  O-O {[%clk 0:02:42]} 15. Bf4 {[%clk 0:02:13]}  a6 {[%clk 0:02:41]} 16. Bd3 {[%clk 0:02:11]}  Re8 {[%clk 0:02:37]} 17. Rc1 {[%clk 0:02:01]}  Rc8 {[%clk 0:02:36]} 18. Bb1 {[%clk 0:02:00]}  Qb6 {[%clk 0:02:29]} 19. b3 {[%clk 0:01:52]}  Bf8 {[%clk 0:02:27]} 20. Be3 {[%clk 0:01:45]}  Qa5 {[%clk 0:02:26]} 21. Qd4 {[%clk 0:01:35]}  g6 {[%clk 0:02:17]} 22. Bd2 {[%clk 0:00:53]}  Qb6 {[%clk 0:02:04]} 23. Be3 {[%clk 0:00:39]}  Qa5 {[%clk 0:02:04]} 24. Bd2 {[%clk 0:00:39]}  Bg7 {[%clk 0:01:30]} 25. Rfe1 {[%clk 0:00:33]}  Qc5 {[%clk 0:01:08]} 26. Qxc5 {[%clk 0:00:31]}  Nxc5 {[%clk 0:01:09]} 27. Rxe8+ {[%clk 0:00:30]}  Rxe8 {[%clk 0:01:09]} 28. Re1 {[%clk 0:00:29]}  Rxe1+ {[%clk 0:01:03]} 29. Bxe1 {[%clk 0:00:28]} 1/2-1/2


[Site "https://www.chess.com"]

[Event "Titled Tuesday Blitz June 22 2021"]
[White "Kollars, Dmitrij"]
[Black "Srihari L R"]
[WhiteFideId "12909572"]
[BlackFideId "46617116"]
[WhiteElo "2576"]
[BlackElo "2121"]
[Result "1-0"]
[Round "11"]
[TimeControl "180+1"]
[Date "2021.06.22"]
[WhiteClock "0:01:27"]
[BlackClock "0:00:26"]

1. Nf3 {[%clk 0:03:00]}  d5 {[%clk 0:02:52]} 2. d4 {[%clk 0:03:00]}  Nf6 {[%clk 0:02:52]} 3. Bf4 {[%clk 0:03:00]}  Bf5 {[%clk 0:02:51]} 4. e3 {[%clk 0:03:01]}  e6 {[%clk 0:02:51]} 5. c4 {[%clk 0:03:01]}  Bxb1 {[%clk 0:02:48]} 6. Qxb1 {[%clk 0:03:02]}  Bb4+ {[%clk 0:02:47]} 7. Kd1 {[%clk 0:03:01]}  O-O {[%clk 0:02:45]} 8. c5 {[%clk 0:02:51]}  c6 {[%clk 0:02:44]} 9. Bd3 {[%clk 0:02:51]}  Ba5 {[%clk 0:02:41]} 10. Ke2 {[%clk 0:02:47]}  Bc7 {[%clk 0:02:41]} 11. Re1 {[%clk 0:02:47]}  Nbd7 {[%clk 0:02:38]} 12. Kf1 {[%clk 0:02:45]}  h6 {[%clk 0:02:37]} 13. b4 {[%clk 0:02:45]}  b5 {[%clk 0:02:32]} 14. a4 {[%clk 0:02:41]}  Bxf4 {[%clk 0:02:30]} 15. exf4 {[%clk 0:02:42]}  a6 {[%clk 0:02:31]} 16. g3 {[%clk 0:02:38]}  Re8 {[%clk 0:02:21]} 17. Kg2 {[%clk 0:02:38]}  Qc7 {[%clk 0:02:21]} 18. Re2 {[%clk 0:02:34]}  Nh5 {[%clk 0:02:04]} 19. Ra3 {[%clk 0:02:27]}  f5 {[%clk 0:01:56]} 20. Qe1 {[%clk 0:02:20]}  Nf8 {[%clk 0:01:38]} 21. Bxf5 {[%clk 0:02:16]}  Qf7 {[%clk 0:01:27]} 22. Bh3 {[%clk 0:02:13]}  Qg6 {[%clk 0:01:25]} 23. Ne5 {[%clk 0:02:03]}  Qh7 {[%clk 0:00:47]} 24. Nxc6 {[%clk 0:01:58]}  bxa4 {[%clk 0:00:43]} 25. Bxe6+ {[%clk 0:01:44]}  Nxe6 {[%clk 0:00:41]} 26. Rxe6 {[%clk 0:01:45]}  Nf6 {[%clk 0:00:39]} 27. f5 {[%clk 0:01:39]}  Kh8 {[%clk 0:00:34]} 28. Ne7 {[%clk 0:01:36]}  Ne4 {[%clk 0:00:32]} 29. Ng6+ {[%clk 0:01:33]}  Kg8 {[%clk 0:00:31]} 30. Rxe8+ {[%clk 0:01:31]}  Rxe8 {[%clk 0:00:31]} 31. f3 {[%clk 0:01:28]}  Nf6 {[%clk 0:00:30]} 32. Re3 {[%clk 0:01:26]}  Rxe3 {[%clk 0:00:26]} 33. Qxe3 {[%clk 0:01:27]} 1-0


[Site "https://www.chess.com"]

[Event "Titled Tuesday Blitz June 22 2021"]
[White "Korchmar, Vasiliy"]
[Black "Blit, Jacques"]
[WhiteFideId "24131750"]
[BlackFideId "114839"]
[WhiteElo "2370"]
[BlackElo "2390"]
[Result "1-0"]
[Round "11"]
[TimeControl "180+1"]
[Date "2021.06.22"]
[WhiteClock "0:00:03"]
[BlackClock "0:00:01"]

1. e4 {[%clk 0:03:00]}  c5 {[%clk 0:02:58]} 2. Nf3 {[%clk 0:03:00]}  a6 {[%clk 0:02:58]} 3. c4 {[%clk 0:02:59]}  d6 {[%clk 0:02:58]} 4. d4 {[%clk 0:02:57]}  cxd4 {[%clk 0:02:59]} 5. Nxd4 {[%clk 0:02:58]}  Nf6 {[%clk 0:02:58]} 6. Nc3 {[%clk 0:02:58]}  b6 {[%clk 0:02:58]} 7. Be2 {[%clk 0:02:51]}  Bb7 {[%clk 0:02:58]} 8. f3 {[%clk 0:02:52]}  e6 {[%clk 0:02:59]} 9. O-O {[%clk 0:02:52]}  Be7 {[%clk 0:02:59]} 10. Be3 {[%clk 0:02:52]}  O-O {[%clk 0:02:59]} 11. Kh1 {[%clk 0:02:46]}  Qc7 {[%clk 0:02:59]} 12. Rc1 {[%clk 0:02:44]}  Nbd7 {[%clk 0:02:59]} 13. Qd2 {[%clk 0:02:30]}  Rac8 {[%clk 0:02:58]} 14. Rfd1 {[%clk 0:02:24]}  Qb8 {[%clk 0:02:58]} 15. Bf1 {[%clk 0:02:22]}  Bd8 {[%clk 0:02:57]} 16. Bg1 {[%clk 0:02:21]}  Bc7 {[%clk 0:02:57]} 17. b4 {[%clk 0:02:17]}  Kh8 {[%clk 0:02:56]} 18. Nb3 {[%clk 0:02:14]}  Rg8 {[%clk 0:02:52]} 19. a4 {[%clk 0:02:10]}  g5 {[%clk 0:02:43]} 20. a5 {[%clk 0:02:09]}  bxa5 {[%clk 0:02:37]} 21. Nxa5 {[%clk 0:02:10]}  Ba8 {[%clk 0:02:37]} 22. Nb3 {[%clk 0:01:19]}  Rg6 {[%clk 0:02:09]} 23. b5 {[%clk 0:01:19]}  d5 {[%clk 0:01:34]} 24. cxd5 {[%clk 0:01:12]}  Bf4 {[%clk 0:01:03]} 25. Qb2 {[%clk 0:01:03]}  axb5 {[%clk 0:00:37]} 26. dxe6 {[%clk 0:01:01]}  fxe6 {[%clk 0:00:33]} 27. Rc2 {[%clk 0:00:40]}  Ne5 {[%clk 0:00:27]} 28. Nxb5 {[%clk 0:00:36]}  Rxc2 {[%clk 0:00:22]} 29. Qxc2 {[%clk 0:00:37]}  Rh6 {[%clk 0:00:21]} 30. Qc7 {[%clk 0:00:29]}  Qxc7 {[%clk 0:00:13]} 31. Nxc7 {[%clk 0:00:30]}  Nxf3 {[%clk 0:00:10]} 32. gxf3 {[%clk 0:00:24]}  Bxc7 {[%clk 0:00:10]} 33. Nc5 {[%clk 0:00:17]}  g4 {[%clk 0:00:08]} 34. Nxe6 {[%clk 0:00:17]}  gxf3 {[%clk 0:00:06]} 35. Nxc7 {[%clk 0:00:17]}  Nxe4 {[%clk 0:00:04]} 36. Rd8+ {[%clk 0:00:13]}  Kg7 {[%clk 0:00:04]} 37. Bd4+ {[%clk 0:00:13]}  Kf7 {[%clk 0:00:03]} 38. Rxa8 {[%clk 0:00:12]}  Rc6 {[%clk 0:00:02]} 39. Nd5 {[%clk 0:00:04]}  Rd6 {[%clk 0:00:01]} 40. Ra7+ {[%clk 0:00:03]} 1-0


[Site "https://www.chess.com"]

[Event "Titled Tuesday Blitz June 22 2021"]
[White "Kovalev, Vladislav"]
[Black "Maly, Alexey"]
[WhiteFideId "13504398"]
[BlackFideId "14103184"]
[WhiteElo "2573"]
[BlackElo "2285"]
[Result "1-0"]
[Round "11"]
[TimeControl "180+1"]
[Date "2021.06.22"]
[WhiteClock "0:00:43"]
[BlackClock "0:00:04"]

1. e4 {[%clk 0:03:00]}  c6 {[%clk 0:03:00]} 2. Nf3 {[%clk 0:03:01]}  d5 {[%clk 0:03:01]} 3. Nc3 {[%clk 0:03:01]}  Bg4 {[%clk 0:03:00]} 4. h3 {[%clk 0:03:02]}  Bxf3 {[%clk 0:03:01]} 5. Qxf3 {[%clk 0:03:03]}  e6 {[%clk 0:03:01]} 6. Be2 {[%clk 0:03:03]}  dxe4 {[%clk 0:02:59]} 7. Nxe4 {[%clk 0:03:03]}  Nd7 {[%clk 0:03:00]} 8. d4 {[%clk 0:03:03]}  Ngf6 {[%clk 0:03:00]} 9. O-O {[%clk 0:02:58]}  Nxe4 {[%clk 0:03:00]} 10. Qxe4 {[%clk 0:02:59]}  Nf6 {[%clk 0:03:00]} 11. Qd3 {[%clk 0:03:00]}  Be7 {[%clk 0:03:00]} 12. a4 {[%clk 0:03:00]}  a5 {[%clk 0:02:59]} 13. c3 {[%clk 0:03:01]}  O-O {[%clk 0:02:58]} 14. Re1 {[%clk 0:03:01]}  Qb6 {[%clk 0:02:56]} 15. Qf3 {[%clk 0:03:01]}  Rad8 {[%clk 0:02:54]} 16. Bc4 {[%clk 0:02:47]}  Nd5 {[%clk 0:02:52]} 17. g3 {[%clk 0:02:36]}  Rd7 {[%clk 0:02:52]} 18. Kg2 {[%clk 0:02:36]}  Rfd8 {[%clk 0:02:52]} 19. h4 {[%clk 0:02:37]}  Bf6 {[%clk 0:02:44]} 20. Re2 {[%clk 0:02:28]}  Be7 {[%clk 0:02:39]} 21. Bg5 {[%clk 0:02:27]}  h6 {[%clk 0:02:31]} 22. Bc1 {[%clk 0:02:26]}  Bf8 {[%clk 0:02:25]} 23. Bd3 {[%clk 0:02:16]}  Qc7 {[%clk 0:02:14]} 24. Bc2 {[%clk 0:02:09]}  Bd6 {[%clk 0:02:00]} 25. Qd3 {[%clk 0:02:04]}  Nf6 {[%clk 0:01:57]} 26. Bd2 {[%clk 0:02:04]}  c5 {[%clk 0:01:46]} 27. Qf3 {[%clk 0:01:22]}  Be7 {[%clk 0:01:27]} 28. Be3 {[%clk 0:01:21]}  Nd5 {[%clk 0:01:19]} 29. Kh3 {[%clk 0:01:15]}  cxd4 {[%clk 0:00:59]} 30. Bxd4 {[%clk 0:01:13]}  Bf6 {[%clk 0:00:58]} 31. Qe4 {[%clk 0:01:00]}  Bxd4 {[%clk 0:00:55]} 32. Qh7+ {[%clk 0:00:57]}  Kf8 {[%clk 0:00:55]} 33. cxd4 {[%clk 0:00:58]}  Nf6 {[%clk 0:00:46]} 34. Qh8+ {[%clk 0:00:57]}  Ke7 {[%clk 0:00:45]} 35. Qxg7 {[%clk 0:00:57]}  Rxd4 {[%clk 0:00:19]} 36. Rae1 {[%clk 0:00:46]}  R8d6 {[%clk 0:00:15]} 37. Bg6 {[%clk 0:00:45]}  Ke8 {[%clk 0:00:06]} 38. Qxf6 {[%clk 0:00:43]}  Qc6 {[%clk 0:00:03]} 39. Rxe6+ {[%clk 0:00:42]}  Rxe6 {[%clk 0:00:03]} 40. Rxe6+ {[%clk 0:00:43]}  Qxe6+ {[%clk 0:00:03]} 41. Qxe6+ {[%clk 0:00:43]}  Kd8 {[%clk 0:00:04]} 42. Qf6+ {[%clk 0:00:43]} 1-0


[Site "https://www.chess.com"]

[Event "Titled Tuesday Blitz June 22 2021"]
[White "Kretov, Evgenij"]
[Black "Najdin, Danil"]
[WhiteFideId "4167821"]
[BlackFideId "4172426"]
[WhiteElo "2400"]
[BlackElo "2193"]
[Result "0-1"]
[Round "11"]
[TimeControl "180+1"]
[Date "2021.06.22"]
[WhiteClock "0:00:40"]
[BlackClock "0:00:36"]

1. d4 {[%clk 0:03:00]}  Nf6 {[%clk 0:02:59]} 2. c4 {[%clk 0:03:00]}  g6 {[%clk 0:03:00]} 3. Nc3 {[%clk 0:03:01]}  Bg7 {[%clk 0:03:00]} 4. e4 {[%clk 0:03:01]}  d6 {[%clk 0:03:01]} 5. Be2 {[%clk 0:03:01]}  O-O {[%clk 0:03:01]} 6. Bg5 {[%clk 0:03:01]}  Na6 {[%clk 0:03:01]} 7. Qd2 {[%clk 0:03:01]}  e5 {[%clk 0:03:01]} 8. d5 {[%clk 0:03:01]}  Nc5 {[%clk 0:03:01]} 9. f3 {[%clk 0:03:01]}  a5 {[%clk 0:03:01]} 10. O-O-O {[%clk 0:02:59]}  Bd7 {[%clk 0:02:57]} 11. g4 {[%clk 0:02:58]}  a4 {[%clk 0:02:55]} 12. h4 {[%clk 0:02:58]}  c6 {[%clk 0:02:26]} 13. dxc6 {[%clk 0:02:56]}  bxc6 {[%clk 0:02:26]} 14. Qxd6 {[%clk 0:02:56]}  Qa5 {[%clk 0:02:25]} 15. Bd2 {[%clk 0:02:54]}  a3 {[%clk 0:02:15]} 16. b3 {[%clk 0:02:50]}  Nxb3+ {[%clk 0:02:11]} 17. axb3 {[%clk 0:02:49]}  a2 {[%clk 0:02:12]} 18. Kc2 {[%clk 0:02:26]}  a1=Q {[%clk 0:02:06]} 19. Rxa1 {[%clk 0:02:26]}  Qxa1 {[%clk 0:02:07]} 20. g5 {[%clk 0:02:19]}  Nh5 {[%clk 0:01:41]} 21. Qxd7 {[%clk 0:02:11]}  Ng3 {[%clk 0:01:31]} 22. Rh3 {[%clk 0:01:20]}  Qxg1 {[%clk 0:01:29]} 23. Bd3 {[%clk 0:01:11]}  Rfd8 {[%clk 0:01:13]} 24. Rxg3 {[%clk 0:00:53]}  Qxg3 {[%clk 0:01:11]} 25. Qxc6 {[%clk 0:00:53]}  Qxf3 {[%clk 0:00:56]} 26. Nd5 {[%clk 0:00:53]}  Ra2+ {[%clk 0:00:54]} 27. Kc3 {[%clk 0:00:52]}  Qf2 {[%clk 0:00:42]} 28. Be3 {[%clk 0:00:40]}  Qe1+ {[%clk 0:00:36]} 0-1


[Site "https://www.chess.com"]

[Event "Titled Tuesday Blitz June 22 2021"]
[White "Manukian, Artak"]
[Black "Odegov, Artem"]
[WhiteFideId "13301373"]
[BlackFideId "34183644"]
[WhiteElo "2343"]
[BlackElo "2297"]
[Result "1-0"]
[Round "11"]
[TimeControl "180+1"]
[Date "2021.06.22"]
[WhiteClock "0:00:31"]
[BlackClock "0:00:11"]

1. e4 {[%clk 0:02:59]}  e6 {[%clk 0:03:00]} 2. d4 {[%clk 0:02:59]}  d5 {[%clk 0:03:01]} 3. e5 {[%clk 0:03:00]}  c5 {[%clk 0:03:01]} 4. c3 {[%clk 0:03:01]}  Qb6 {[%clk 0:03:01]} 5. Nf3 {[%clk 0:03:01]}  Nc6 {[%clk 0:03:01]} 6. a3 {[%clk 0:03:02]}  Nh6 {[%clk 0:03:01]} 7. b4 {[%clk 0:03:02]}  cxd4 {[%clk 0:03:01]} 8. cxd4 {[%clk 0:03:03]}  Bd7 {[%clk 0:02:58]} 9. Nc3 {[%clk 0:02:57]}  Nf5 {[%clk 0:02:54]} 10. Na4 {[%clk 0:02:56]}  Qd8 {[%clk 0:02:52]} 11. Bb2 {[%clk 0:02:53]}  Be7 {[%clk 0:02:47]} 12. Bd3 {[%clk 0:02:50]}  O-O {[%clk 0:02:46]} 13. O-O {[%clk 0:02:48]}  g6 {[%clk 0:02:37]} 14. Nc5 {[%clk 0:02:37]}  Bxc5 {[%clk 0:02:35]} 15. dxc5 {[%clk 0:02:38]}  Rc8 {[%clk 0:02:27]} 16. Qd2 {[%clk 0:02:31]}  Nh4 {[%clk 0:02:09]} 17. Qh6 {[%clk 0:02:06]}  Nxf3+ {[%clk 0:02:05]} 18. gxf3 {[%clk 0:02:07]}  d4 {[%clk 0:02:03]} 19. f4 {[%clk 0:02:02]}  Ne7 {[%clk 0:01:59]} 20. h4 {[%clk 0:01:49]}  Kh8 {[%clk 0:01:48]} 21. h5 {[%clk 0:01:41]}  Nf5 {[%clk 0:01:47]} 22. Bxf5 {[%clk 0:01:41]}  gxf5 {[%clk 0:01:48]} 23. Qf6+ {[%clk 0:01:23]}  Qxf6 {[%clk 0:01:46]} 24. exf6 {[%clk 0:01:23]}  Rg8+ {[%clk 0:01:44]} 25. Kh2 {[%clk 0:01:24]}  Bc6 {[%clk 0:01:43]} 26. Rg1 {[%clk 0:01:24]}  d3 {[%clk 0:01:26]} 27. Rg7 {[%clk 0:01:18]}  Rcd8 {[%clk 0:00:09]} 28. Rd1 {[%clk 0:01:02]}  Bf3 {[%clk 0:00:04]} 29. Rd2 {[%clk 0:01:02]}  Bxh5 {[%clk 0:00:04]} 30. Be5 {[%clk 0:00:54]}  Bf3 {[%clk 0:00:04]} 31. Bd6 {[%clk 0:00:50]}  Rd7 {[%clk 0:00:03]} 32. Rxd3 {[%clk 0:00:48]}  Bg4 {[%clk 0:00:02]} 33. Rg3 {[%clk 0:00:43]}  Rxg7 {[%clk 0:00:02]} 34. fxg7+ {[%clk 0:00:43]}  Kxg7 {[%clk 0:00:03]} 35. f3 {[%clk 0:00:43]}  h5 {[%clk 0:00:03]} 36. fxg4 {[%clk 0:00:43]}  hxg4 {[%clk 0:00:04]} 37. Rd3 {[%clk 0:00:42]}  Kg6 {[%clk 0:00:04]} 38. Kg3 {[%clk 0:00:41]}  Rd8 {[%clk 0:00:04]} 39. b5 {[%clk 0:00:41]}  Rh8 {[%clk 0:00:04]} 40. Kg2 {[%clk 0:00:41]}  Rc8 {[%clk 0:00:02]} 41. Rc3 {[%clk 0:00:40]}  f6 {[%clk 0:00:03]} 42. c6 {[%clk 0:00:40]}  bxc6 {[%clk 0:00:03]} 43. bxc6 {[%clk 0:00:41]}  Kf7 {[%clk 0:00:04]} 44. c7 {[%clk 0:00:39]}  Ke8 {[%clk 0:00:04]} 45. Bb4 {[%clk 0:00:39]}  Kd7 {[%clk 0:00:05]} 46. Ba5 {[%clk 0:00:39]}  e5 {[%clk 0:00:04]} 47. fxe5 {[%clk 0:00:35]}  fxe5 {[%clk 0:00:05]} 48. Rd3+ {[%clk 0:00:34]}  Kc6 {[%clk 0:00:05]} 49. Rd8 {[%clk 0:00:34]}  Kb7 {[%clk 0:00:06]} 50. Kg3 {[%clk 0:00:33]}  a6 {[%clk 0:00:02]} 51. a4 {[%clk 0:00:32]}  e4 {[%clk 0:00:02]} 52. Kf4 {[%clk 0:00:32]}  Rxc7 {[%clk 0:00:02]} 53. Bxc7 {[%clk 0:00:31]}  Kxc7 {[%clk 0:00:03]} 54. Re8 {[%clk 0:00:30]}  g3 {[%clk 0:00:02]} 55. Kxg3 {[%clk 0:00:30]}  Kd6 {[%clk 0:00:03]} 56. Kf4 {[%clk 0:00:30]}  Kc5 {[%clk 0:00:03]} 57. Kxf5 {[%clk 0:00:29]}  Kb4 {[%clk 0:00:04]} 58. Rxe4+ {[%clk 0:00:30]}  Ka5 {[%clk 0:00:04]} 59. Ke6 {[%clk 0:00:30]}  Kb6 {[%clk 0:00:04]} 60. Kd5 {[%clk 0:00:30]}  Ka5 {[%clk 0:00:05]} 61. Rd4 {[%clk 0:00:29]}  Kb6 {[%clk 0:00:05]} 62. Kc4 {[%clk 0:00:29]}  Ka5 {[%clk 0:00:06]} 63. Kb3 {[%clk 0:00:29]}  Kb6 {[%clk 0:00:07]} 64. Rd5 {[%clk 0:00:30]}  Kc6 {[%clk 0:00:07]} 65. Rh5 {[%clk 0:00:31]}  Kb6 {[%clk 0:00:07]} 66. a5+ {[%clk 0:00:32]}  Ka7 {[%clk 0:00:08]} 67. Kb4 {[%clk 0:00:32]}  Kb7 {[%clk 0:00:09]} 68. Kc5 {[%clk 0:00:31]}  Kc7 {[%clk 0:00:10]} 69. Rh7+ {[%clk 0:00:31]}  Kb8 {[%clk 0:00:10]} 70. Kc6 {[%clk 0:00:31]}  Kc8 {[%clk 0:00:11]} 71. Rh8# {[%clk 0:00:31]} 1-0


[Site "https://www.chess.com"]

[Event "Titled Tuesday Blitz June 22 2021"]
[White "Martin Carmona, Gaston Manuel"]
[Black "Lagno, Kateryna"]
[WhiteFideId "22284567"]
[BlackFideId "14109336"]
[WhiteElo "2161"]
[BlackElo "2608"]
[Result "0-1"]
[Round "11"]
[TimeControl "180+1"]
[Date "2021.06.22"]
[WhiteClock "0:00:20"]
[BlackClock "0:01:22"]

1. e4 {[%clk 0:02:57]}  e5 {[%clk 0:03:00]} 2. Nf3 {[%clk 0:02:56]}  Nc6 {[%clk 0:03:00]} 3. Bc4 {[%clk 0:02:55]}  Bc5 {[%clk 0:02:59]} 4. c3 {[%clk 0:02:55]}  Nf6 {[%clk 0:03:00]} 5. d3 {[%clk 0:02:56]}  d6 {[%clk 0:02:59]} 6. a4 {[%clk 0:02:55]}  a6 {[%clk 0:02:59]} 7. Nbd2 {[%clk 0:02:54]}  O-O {[%clk 0:02:57]} 8. O-O {[%clk 0:02:53]}  Bb6 {[%clk 0:02:53]} 9. h3 {[%clk 0:02:50]}  h6 {[%clk 0:02:51]} 10. Re1 {[%clk 0:02:49]}  Re8 {[%clk 0:02:50]} 11. Nf1 {[%clk 0:02:49]}  Be6 {[%clk 0:02:50]} 12. Ng3 {[%clk 0:02:41]}  Bxc4 {[%clk 0:02:44]} 13. dxc4 {[%clk 0:02:42]}  Ne7 {[%clk 0:02:43]} 14. Nh4 {[%clk 0:02:35]}  Qd7 {[%clk 0:02:42]} 15. Qf3 {[%clk 0:02:33]}  Qe6 {[%clk 0:02:41]} 16. b3 {[%clk 0:02:31]}  c6 {[%clk 0:02:40]} 17. Nhf5 {[%clk 0:02:29]}  Nxf5 {[%clk 0:02:38]} 18. Nxf5 {[%clk 0:02:30]}  Kh7 {[%clk 0:02:31]} 19. Qg3 {[%clk 0:01:56]}  Rg8 {[%clk 0:02:26]} 20. Qh4 {[%clk 0:01:56]}  Ne8 {[%clk 0:02:18]} 21. Be3 {[%clk 0:01:50]}  Bd8 {[%clk 0:02:15]} 22. Qg3 {[%clk 0:01:43]}  g6 {[%clk 0:02:16]} 23. Nxh6 {[%clk 0:01:42]}  Rg7 {[%clk 0:02:09]} 24. f4 {[%clk 0:01:32]}  exf4 {[%clk 0:02:02]} 25. Bxf4 {[%clk 0:01:32]}  g5 {[%clk 0:02:01]} 26. Nf5 {[%clk 0:01:31]}  gxf4 {[%clk 0:02:00]} 27. Qxf4 {[%clk 0:01:03]}  Rg6 {[%clk 0:01:58]} 28. Rad1 {[%clk 0:01:00]}  Bg5 {[%clk 0:01:43]} 29. Qf3 {[%clk 0:00:58]}  Bf6 {[%clk 0:01:40]} 30. h4 {[%clk 0:00:45]}  Be5 {[%clk 0:01:37]} 31. h5 {[%clk 0:00:45]}  Rg5 {[%clk 0:01:35]} 32. Rf1 {[%clk 0:00:36]}  Nf6 {[%clk 0:01:32]} 33. Nd4 {[%clk 0:00:33]}  Qg4 {[%clk 0:01:27]} 34. Qxg4 {[%clk 0:00:28]}  Rxg4 {[%clk 0:01:28]} 35. Nf5 {[%clk 0:00:29]}  Nxe4 {[%clk 0:01:24]} 36. Ne3 {[%clk 0:00:28]}  Rf4 {[%clk 0:01:23]} 37. Rxf4 {[%clk 0:00:24]}  Bxf4 {[%clk 0:01:24]} 38. Ng4 {[%clk 0:00:25]}  Rg8 {[%clk 0:01:22]} 39. Nf2 {[%clk 0:00:20]}  Be3 {[%clk 0:01:22]} 0-1


[Site "https://www.chess.com"]

[Event "Titled Tuesday Blitz June 22 2021"]
[White "Martinez Alcantara, Jose Eduardo"]
[Black "Siniauski, Artsiom"]
[WhiteFideId "3805662"]
[BlackFideId "13512269"]
[WhiteElo "2690"]
[BlackElo "2212"]
[Result "1-0"]
[Round "11"]
[TimeControl "180+1"]
[Date "2021.06.22"]
[WhiteClock "0:01:16"]
[BlackClock "0:00:01"]

1. e4 {[%clk 0:03:00]}  e6 {[%clk 0:02:54]} 2. d4 {[%clk 0:03:00]}  d5 {[%clk 0:02:54]} 3. Nd2 {[%clk 0:03:01]}  c5 {[%clk 0:02:54]} 4. Ngf3 {[%clk 0:03:00]}  cxd4 {[%clk 0:02:54]} 5. Nxd4 {[%clk 0:03:01]}  Nc6 {[%clk 0:02:54]} 6. Bb5 {[%clk 0:03:00]}  Bd7 {[%clk 0:02:54]} 7. Nxc6 {[%clk 0:03:00]}  bxc6 {[%clk 0:02:55]} 8. Bd3 {[%clk 0:03:01]}  Qc7 {[%clk 0:02:51]} 9. Qe2 {[%clk 0:03:00]}  Ne7 {[%clk 0:02:49]} 10. c4 {[%clk 0:02:59]}  d4 {[%clk 0:02:45]} 11. e5 {[%clk 0:02:59]}  Ng6 {[%clk 0:02:40]} 12. Nf3 {[%clk 0:02:59]}  c5 {[%clk 0:02:39]} 13. h4 {[%clk 0:02:55]}  Be7 {[%clk 0:02:19]} 14. h5 {[%clk 0:02:55]}  Nf8 {[%clk 0:02:19]} 15. h6 {[%clk 0:02:56]}  g6 {[%clk 0:02:19]} 16. Bg5 {[%clk 0:02:56]}  Bc6 {[%clk 0:02:14]} 17. Bxe7 {[%clk 0:02:55]}  Qxe7 {[%clk 0:02:14]} 18. Be4 {[%clk 0:02:56]}  Qb7 {[%clk 0:02:11]} 19. Ng5 {[%clk 0:02:50]}  Bxe4 {[%clk 0:01:52]} 20. Nxe4 {[%clk 0:02:50]}  Qb4+ {[%clk 0:01:50]} 21. Kf1 {[%clk 0:02:49]}  Nd7 {[%clk 0:01:48]} 22. Rh3 {[%clk 0:02:28]}  Ke7 {[%clk 0:01:02]} 23. Rb3 {[%clk 0:02:10]}  Qa4 {[%clk 0:00:54]} 24. Rb7 {[%clk 0:02:03]}  Qc6 {[%clk 0:00:52]} 25. Nd6 {[%clk 0:01:45]}  Rhb8 {[%clk 0:00:46]} 26. Rxb8 {[%clk 0:01:46]}  Rxb8 {[%clk 0:00:46]} 27. f4 {[%clk 0:01:46]}  d3 {[%clk 0:00:25]} 28. Qxd3 {[%clk 0:01:42]}  Rxb2 {[%clk 0:00:24]} 29. Ne4 {[%clk 0:01:43]}  f5 {[%clk 0:00:20]} 30. Nf2 {[%clk 0:01:36]}  g5 {[%clk 0:00:15]} 31. g3 {[%clk 0:01:25]}  gxf4 {[%clk 0:00:14]} 32. gxf4 {[%clk 0:01:26]}  Nf8 {[%clk 0:00:14]} 33. Rd1 {[%clk 0:01:21]}  Qc7 {[%clk 0:00:12]} 34. Qg3 {[%clk 0:01:17]}  Ng6 {[%clk 0:00:11]} 35. Qg5+ {[%clk 0:01:17]}  Kf7 {[%clk 0:00:11]} 36. Qf6+ {[%clk 0:01:17]}  Ke8 {[%clk 0:00:09]} 37. Qxe6+ {[%clk 0:01:17]}  Qe7 {[%clk 0:00:10]} 38. Qc8+ {[%clk 0:01:16]}  Kf7 {[%clk 0:00:10]} 39. Rd7 {[%clk 0:01:16]}  Rb1+ {[%clk 0:00:10]} 40. Kg2 {[%clk 0:01:17]}  Nxf4+ {[%clk 0:00:10]} 41. Kh2 {[%clk 0:01:17]}  Rb8 {[%clk 0:00:01]} 42. Rxe7+ {[%clk 0:01:16]} 1-0


[Site "https://www.chess.com"]

[Event "Titled Tuesday Blitz June 22 2021"]
[White "Mekhitarian, Krikor Sevag"]
[Black "Muradli, Mahammad"]
[WhiteFideId "2107660"]
[BlackFideId "13409301"]
[WhiteElo "2598"]
[BlackElo "2482"]
[Result "0-1"]
[Round "11"]
[TimeControl "180+1"]
[Date "2021.06.22"]
[WhiteClock "0:00:02"]
[BlackClock "0:01:07"]

1. e4 {[%clk 0:03:00]}  c5 {[%clk 0:02:59]} 2. Nf3 {[%clk 0:02:59]}  d6 {[%clk 0:02:59]} 3. d4 {[%clk 0:03:00]}  cxd4 {[%clk 0:02:59]} 4. Nxd4 {[%clk 0:03:01]}  a6 {[%clk 0:02:59]} 5. c4 {[%clk 0:02:56]}  e6 {[%clk 0:02:59]} 6. Nc3 {[%clk 0:02:56]}  Be7 {[%clk 0:03:00]} 7. Be2 {[%clk 0:02:54]}  b6 {[%clk 0:03:01]} 8. O-O {[%clk 0:02:54]}  Bb7 {[%clk 0:03:01]} 9. Be3 {[%clk 0:02:54]}  Nd7 {[%clk 0:03:01]} 10. a4 {[%clk 0:02:48]}  Ngf6 {[%clk 0:02:58]} 11. f3 {[%clk 0:02:47]}  Rc8 {[%clk 0:02:51]} 12. a5 {[%clk 0:02:39]}  Ne5 {[%clk 0:02:50]} 13. Qb3 {[%clk 0:02:04]}  Nfd7 {[%clk 0:02:32]} 14. axb6 {[%clk 0:01:56]}  Nc5 {[%clk 0:02:07]} 15. Qa3 {[%clk 0:01:37]}  Qxb6 {[%clk 0:01:58]} 16. b4 {[%clk 0:01:33]}  Ncd7 {[%clk 0:01:58]} 17. Nf5 {[%clk 0:01:28]}  Qd8 {[%clk 0:01:58]} 18. Nxg7+ {[%clk 0:01:19]}  Kf8 {[%clk 0:01:58]} 19. Bh6 {[%clk 0:00:47]}  Kg8 {[%clk 0:01:58]} 20. f4 {[%clk 0:00:47]}  Nxc4 {[%clk 0:01:51]} 21. Bxc4 {[%clk 0:00:33]}  Rxc4 {[%clk 0:01:52]} 22. Nd5 {[%clk 0:00:34]}  Bh4 {[%clk 0:01:21]} 23. Qh3 {[%clk 0:00:17]}  Nf8 {[%clk 0:01:13]} 24. Nh5 {[%clk 0:00:04]}  exd5 {[%clk 0:01:09]} 25. Qg4+ {[%clk 0:00:02]}  Ng6 {[%clk 0:01:09]} 26. f5 {[%clk 0:00:01]}  Rxe4 {[%clk 0:01:09]} 27. Nf4 {[%clk 0:00:02]}  Bf6 {[%clk 0:01:06]} 28. fxg6 {[%clk 0:00:02]}  hxg6 {[%clk 0:01:07]} 0-1


[Site "https://www.chess.com"]